fUST/lending_fUST_20250131
["ID","MTS","AMOUNT","RATE_DAILY","PERIOD"]
[350986019,1738267840844,-500.0,0.00017123,2]
[350986021,1738267840854,-500.0,0.00017123,2]
[350986024,1738267840865,-500.0,0.00017123,2]
[350986025,1738267840874,-500.0,0.00017123,2]
[350986027,1738267840883,-500.0,0.00017123,2]
[350986029,1738267840892,-599.27,0.00017123,2]
[350986031,1738267840901,-500.0,0.0001726,2]
[350986033,1738267840910,-500.0,0.0001726,2]
[350986035,1738267840920,-500.0,0.0001726,2]
[350986036,1738267840930,-637.79,0.0001726,2]
[350986037,1738267840939,-2544.17,0.0001726,2]
[350986038,1738267840948,-500.0,0.0001726,2]
[350986039,1738267840957,-500.0,0.0001726,2]
[350986041,1738267840968,-380.88,0.0001726,2]
[350986043,1738267840977,-187.13,0.0001726,2]
[350986045,1738267840986,-1392.19,0.0001726,2]
[350986047,1738267840995,-500.0,0.0001726,2]
[350986049,1738267841004,-500.0,0.0001726,2]
[350986051,1738267841013,-847.63,0.0001726,2]
[350986053,1738267841022,-590.37,0.0001726,2]
[350986055,1738267841032,-500.0,0.0001726,2]
[350986057,1738267841041,-500.0,0.0001726,2]
[350986059,1738267841050,-500.0,0.0001726,2]
[350986061,1738267841059,-500.0,0.0001726,2]
[350986063,1738267841068,-500.0,0.0001726,2]
[350986065,1738267841077,-500.0,0.00017397,2]
[350986067,1738267841088,-637.79,0.00017397,2]
[350986069,1738267841097,-2544.17,0.00017397,2]
[350986071,1738267841106,-319.38,0.00017397,2]
[350986073,1738267841115,-500.0,0.00017397,2]
[350986075,1738267841126,-1392.19,0.00017397,2]
[350986076,1738267841136,-500.0,0.00017397,2]
[350986078,1738267841146,-500.0,0.00017397,2]
[350986080,1738267841158,-151.0,0.00017397,2]
[350986082,1738267841169,-151.0,0.00017397,2]
[350986084,1738267841178,-847.63,0.00017397,2]
[350986086,1738267841189,-590.37,0.00017397,2]
[350986089,1738267841199,-500.0,0.00017397,2]
[350986090,1738267841208,-500.0,0.00017397,2]
[350986092,1738267841217,-500.0,0.00017397,2]
[350986094,1738267841226,-484.0,0.00017397,2]
[350986096,1738267841235,-500.0,0.00017397,2]
[350986098,1738267841244,-500.0,0.00017534,2]
[350986100,1738267841253,-637.79,0.00017534,2]
[350986102,1738267841262,-2544.17,0.00017534,2]
[350986104,1738267841271,-500.0,0.00017534,2]
[350986106,1738267841280,-1392.19,0.00017534,2]
[350986108,1738267841290,-500.0,0.00017534,2]
[350986110,1738267841299,-500.0,0.00017534,2]
[350986112,1738267841308,-384.582481,0.00017534,2]
[350986114,1738267841317,-384.582481,0.00017534,2]
[350986116,1738267841326,-847.63,0.00017534,2]
[350986118,1738267841335,-590.37,0.00017534,2]
[350986120,1738267841344,-500.0,0.00017534,2]
[350986122,1738267841353,-500.0,0.00017534,2]
[350986132,1738267841442,-500.0,0.00017534,2]
[350986134,1738267841453,-500.0,0.00017534,2]
[350986136,1738267841464,-230.4063286,0.00017571,2]
[350986138,1738267841473,-575.94,0.0001767,2]
[350986140,1738267841482,-500.0,0.00017671,2]
[350986142,1738267841493,-637.79,0.00017671,2]
[350986144,1738267841503,-2544.17,0.00017671,2]
[350986146,1738267841512,-500.0,0.00017671,2]
[350986148,1738267841522,-1392.19,0.00017671,2]
[350986150,1738267841531,-500.0,0.00017671,2]
[350986152,1738267841541,-500.0,0.00017671,2]
[350986154,1738267841550,-847.63,0.00017671,2]
[350986156,1738267841559,-590.37,0.00017671,2]
[350986158,1738267841569,-500.0,0.00017671,2]
[350986160,1738267841578,-500.0,0.00017671,2]
[350986162,1738267841587,-500.0,0.00017671,2]
[350986164,1738267841596,-500.0,0.00017671,2]
[350986166,1738267841606,-500.0,0.00017807,2]
[350986168,1738267841615,-346.21,0.00017808,2]
[350986170,1738267841625,-637.79,0.00017808,2]
[350986172,1738267841634,-2544.17,0.00017808,2]
[350986174,1738267841644,-500.0,0.00017808,2]
[350986176,1738267841653,-1392.19,0.00017808,2]
[350986178,1738267841666,-500.0,0.00017808,2]
[350986180,1738267841676,-500.0,0.00017808,2]
[350986182,1738267841685,-847.63,0.00017808,2]
[350986184,1738267841695,-590.37,0.00017808,2]
[350986186,1738267841704,-500.0,0.00017808,2]
[350986188,1738267841714,-500.0,0.00017808,2]
[350986190,1738267841723,-500.0,0.00017808,2]
[350986192,1738267841732,-500.0,0.00017808,2]
[350986194,1738267841744,-200.26122974,0.000179,2]
[350986196,1738267841754,-151.0,0.00017945,2]
[350986198,1738267841763,-151.0,0.00017945,2]
[350986200,1738267841772,-151.0,0.00017945,2]
[350986202,1738267841783,-151.0,0.00017945,2]
[350986204,1738267841792,-151.0,0.00017945,2]
[350986206,1738267841801,-637.79,0.00017945,2]
[350986208,1738267841810,-2544.17,0.00017945,2]
[350986210,1738267841820,-529.03,0.00017945,2]
[350986212,1738267841829,-1392.19,0.00017945,2]
[350986214,1738267841839,-500.0,0.00017945,2]
[350986216,1738267841848,-500.0,0.00017945,2]
[350986218,1738267841857,-847.63,0.00017945,2]
[350986220,1738267841867,-590.37,0.00017945,2]
[350986222,1738267841876,-500.0,0.00017945,2]
[350986224,1738267841887,-395.14,0.00017945,2]
[350986226,1738267841897,-500.0,0.00017945,2]
[350986227,1738267841906,-500.0,0.00017945,2]
[350986230,1738267841915,-420.0,0.00017962,2]
[350986232,1738267841925,-151.0,0.00018082,2]
[350986234,1738267841934,-151.0,0.00018082,2]
[350986235,1738267841944,-279.97788,0.00018082,2]
[350986238,1738267841953,-151.0,0.00018082,2]
[350986239,1738267841964,-151.0,0.00018082,2]
[350986241,1738267841974,-637.79,0.00018082,2]
[350986243,1738267841983,-2544.17,0.00018082,2]
[350986245,1738267841993,-1392.19,0.00018082,2]
[350986247,1738267842002,-500.0,0.00018082,2]
[350986249,1738267842012,-500.0,0.00018082,2]
[350986251,1738267842021,-847.63,0.00018082,2]
[350986253,1738267842030,-590.37,0.00018082,2]
[350986255,1738267842040,-500.0,0.00018082,2]
[350986257,1738267842049,-500.0,0.00018082,2]
[350986259,1738267842058,-500.0,0.00018082,2]
[350986261,1738267842068,-637.79,0.00018219,2]
[350986263,1738267842077,-2544.17,0.00018219,2]
[350986265,1738267842086,-1392.19,0.00018219,2]
[350986267,1738267842095,-500.0,0.00018219,2]
[350986269,1738267842104,-500.0,0.00018219,2]
[350986271,1738267842113,-151.0,0.00018219,2]
[350986273,1738267842123,-384.582481,0.00018219,2]
[350986275,1738267842132,-384.582481,0.00018219,2]
[350986277,1738267842141,-151.0,0.00018219,2]
[350986279,1738267842151,-847.63,0.00018219,2]
[350986281,1738267842162,-590.37,0.00018219,2]
[350986283,1738267842171,-314.71600615,0.00018219,2]
[350986307,1738267842386,-500.0,0.00016438,2]
[350986308,1738267842396,-428.3289022,0.00016438,2]
[350986311,1738267842408,-71.6710978,0.00016438,2]
[350986313,1738267842417,-29.47399385,0.00018219,2]
[350986315,1738267842426,-440.86529517,0.00018219,2]
[350986317,1738267842438,-62.78470483,0.00018219,2]
[350986319,1738267842447,-500.0,0.00018219,2]
[350986321,1738267842457,-200.26122966,0.00018257,2]
[350986323,1738267842467,-291.0,0.00018316,2]
[350986325,1738267842476,-637.79,0.00018356,2]
[350986327,1738267842485,-2544.17,0.00018356,2]
[350986329,1738267842494,-1392.19,0.00018356,2]
[350986331,1738267842504,-500.0,0.00018356,2]
[350986333,1738267842512,-500.0,0.00018356,2]
[350986334,1738267842521,-847.63,0.00018356,2]
[350986336,1738267842530,-590.37,0.00018356,2]
[350986338,1738267842539,-500.0,0.00018356,2]
[350986341,1738267842549,-500.0,0.00018464,2]
[350986344,1738267842558,-637.79,0.00018493,2]
[350986347,1738267842568,-2544.17,0.00018493,2]
[350986350,1738267842577,-1392.19,0.00018493,2]
[350986352,1738267842586,-500.0,0.00018493,2]
[350986355,1738267842595,-500.0,0.00018493,2]
[350986358,1738267842604,-847.63,0.00018493,2]
[350986359,1738267842613,-590.37,0.00018493,2]
[350986361,1738267842622,-500.0,0.00018493,2]
[350986363,1738267842631,-156.1,0.000186,2]
[350986365,1738267842640,-200.26122966,0.00018614,2]
[350986367,1738267842649,-575.94,0.00018629,2]
[350986369,1738267842659,-500.0,0.00018629,2]
[350986371,1738267842667,-151.0,0.0001863,2]
[350986373,1738267842677,-637.79,0.0001863,2]
[350986376,1738267842686,-2544.17,0.0001863,2]
[350986379,1738267842695,-1392.19,0.0001863,2]
[350986382,1738267842704,-500.0,0.0001863,2]
[350986383,1738267842713,-500.0,0.0001863,2]
[350986384,1738267842722,-847.63,0.0001863,2]
[350986386,1738267842732,-590.37,0.0001863,2]
[350986388,1738267842744,-500.0,0.0001863,2]
[350986389,1738267842753,-194.134078,0.00018767,2]
[350986391,1738267842762,-151.0,0.00018767,2]
[350986392,1738267842771,-151.0,0.00018767,2]
[350986393,1738267842782,-49.2941549,0.00018767,2]
[350986394,1738267842795,-101.7058451,0.00018767,2]
[350986395,1738267842806,-151.0,0.00018767,2]
[350986396,1738267842818,-637.79,0.00018767,2]
[350986397,1738267842827,-550.7741549,0.00018767,2]
[350986398,1738267842839,-1993.3958451,0.00018767,2]
[350986399,1738267842848,-1392.19,0.00018767,2]
[350986400,1738267842863,-500.0,0.00018767,2]
[350986401,1738267842877,-372.48,0.00018767,2]
[350986402,1738267842890,-847.63,0.00018767,2]
[350986403,1738267842900,-590.37,0.00018767,2]
[350986404,1738267842910,-500.0,0.00018767,2]
[350986405,1738267842919,-637.79,0.00018904,2]
[350986406,1738267842928,-2356.1924898,0.00018904,2]
[350986407,1738267842940,-187.9775102,0.00018904,2]
[350986408,1738267842950,-1392.19,0.00018904,2]
[350986409,1738267842960,-500.0,0.00018904,2]
[350986410,1738267842973,-847.63,0.00018904,2]
[350986411,1738267842982,-590.37,0.00018904,2]
[350986412,1738267842991,-252.79,0.00018904,2]
[350986413,1738267843000,-200.26122966,0.00018971,2]
[350986414,1738267843011,-637.79,0.00019041,2]
[350986415,1738267843020,-2544.17,0.00019041,2]
[350986416,1738267843029,-1392.19,0.00019041,2]
[350986417,1738267843039,-500.0,0.00019041,2]
[350986418,1738267843048,-847.63,0.00019041,2]
[350986419,1738267843059,-590.37,0.00019041,2]
[350986420,1738267843068,-637.79,0.00019178,2]
[350986421,1738267843078,-2544.17,0.00019178,2]
[350986422,1738267843088,-1392.19,0.00019178,2]
[350986423,1738267843098,-500.0,0.00019178,2]
[350986424,1738267843107,-847.63,0.00019178,2]
[350986425,1738267843117,-590.37,0.00019178,2]
[350986426,1738267843126,-207.061804,0.00019178,2]
[350986427,1738267843135,-637.79,0.00019315,2]
[350986428,1738267843144,-2544.17,0.00019315,2]
[350986429,1738267843154,-1392.19,0.00019315,2]
[350986430,1738267843163,-500.0,0.00019315,2]
[350986431,1738267843172,-384.582481,0.00019315,2]
[350986432,1738267843181,-384.582481,0.00019315,2]
[350986433,1738267843276,-847.63,0.00019315,2]
[350986434,1738267843291,-590.37,0.00019315,2]
[350986435,1738267843300,-200.26122966,0.00019329,2]
[350986436,1738267843309,-637.79,0.00019452,2]
[350986437,1738267843318,-2544.17,0.00019452,2]
[350986438,1738267843327,-1392.19,0.00019452,2]
[350986439,1738267843337,-500.0,0.00019452,2]
[350986440,1738267843346,-151.0,0.00019452,2]
[350986441,1738267843355,-151.0,0.00019452,2]
[350986442,1738267843365,-847.63,0.00019452,2]
[350986443,1738267843374,-590.37,0.00019452,2]
[350986444,1738267843383,-7112.55,0.000195,2]
[350986445,1738267843392,-7066.28,0.000195,2]
[350986446,1738267843401,-637.8857219,0.00019589,2]
[350986447,1738267843410,-2544.31384165,0.00019589,2]
[350986448,1738267843419,-1392.25663872,0.00019589,2]
[350986449,1738267843429,-224.13,0.00019589,2]
[350986450,1738267843438,-847.76,0.00019589,2]
[350986451,1738267843447,-590.42890923,0.00019589,2]
[350986452,1738267843456,-180.0,0.0001963,2]
[350986453,1738267843467,-200.26122966,0.00019686,2]
[350986454,1738267843476,-303.4983749,0.00019863,2]
[350986455,1738267843485,-575.94,0.00019999,2]
[350986456,1738267843494,-160.0,0.0002,2]
[350986457,1738267843503,-5174.0,0.0002,2]
[350986458,1738267843512,-200.26122966,0.00020043,2]
[350986459,1738267843522,-395.0,0.00020212,2]
[350986460,1738267843531,-200.26122966,0.000204,2]
[350986461,1738267843541,-600.0,0.00020656,2]
[350986462,1738267843550,-331.3985563,0.00020685,2]
[350986463,1738267843559,-200.26122966,0.00020757,2]
[350986464,1738267843569,-162.677479,0.00020807,2]
[350986465,1738267843578,-158.254,0.000209,2]
[350986466,1738267843587,-150.0,0.00021,2]
[350986467,1738267843596,-466.29552669,0.00021004,2]
[350986468,1738267843605,-163.04,0.000211,2]
[350986469,1738267843614,-200.26122966,0.00021114,2]
[350986470,1738267843623,-201.15,0.00021267,2]
[350986471,1738267843633,-200.26122966,0.00021471,2]
[350986472,1738267843642,-151.0,0.000215,3]
[350986473,1738267843651,-7112.55,0.000215,2]
[350986474,1738267843660,-5074.61364921,0.000215,2]
[350986475,1738267843671,-1991.66635079,0.000215,2]
[350986476,1738267843681,-384.582481,0.000215,2]
[350986477,1738267843689,-384.582481,0.000215,2]
[350986478,1738267843699,-302.91435587,0.000216,4]
[350986479,1738267843710,-4871.08564413,0.000216,4]
[350986480,1738267843720,-151.0,0.000216,2]
[350986481,1738267843729,-151.0,0.000216,2]
[350986482,1738267843741,-98.21133794,0.000216,2]
[350986483,1738267843761,-304.67957923,0.00016337,2]
[350986484,1738267843770,-52.78866206,0.000216,2]
[350986485,1738267843779,-500.0,0.00021799,2]
[350986486,1738267843790,-2219.10407505,0.000218,3]
[350986487,1738267843868,-374.9442781,0.00016438,2]
[350986488,1738267843878,-369.14902328,0.00016438,2]
[350986489,1738267843889,-130.85097672,0.00016438,2]
[350986490,1738267843898,-369.14902328,0.00016438,2]
[350986491,1738267843914,-130.85097672,0.00016438,2]
[350986492,1738267843924,-796.955157,0.000218,3]
[350986624,1738267846181,-500.0,0.00016438,2]
[350986625,1738267846192,-172.80474645,0.0001716,2]
[350986626,1738267846202,-304.67957919,0.00017182,2]
[350986627,1738267846211,-172.80474645,0.0001874,2]
[350986628,1738267846222,-4983.94076795,0.000218,3]
[350986629,1738267846231,-151.0,0.000218,2]
[350986630,1738267846241,-151.0,0.000218,2]
[350986631,1738267846250,-151.0,0.000218,2]
[350986632,1738267846259,-151.0,0.000218,2]
[350986633,1738267846269,-151.0,0.000218,2]
[350986634,1738267846279,-151.0,0.000218,2]
[350986635,1738267846289,-575.94,0.00021802,2]
[350986637,1738267846298,-200.26122966,0.00021829,3]
[350986639,1738267846307,-575.94,0.00021899,2]
[350986640,1738267846316,-575.94,0.00021899,2]
[350986642,1738267846325,-1560.24223532,0.000219,2]
[350986644,1738267846336,-1038.8,0.000219,2]
[350986645,1738267846348,-400.95776468,0.000219,2]
[350986646,1738267846357,-151.0,0.000219,2]
[350986647,1738267846367,-151.0,0.000219,2]
[350986648,1738267846376,-500.0,0.00021917,7]
[350986649,1738267846386,-500.0,0.00021917,7]
[350986650,1738267846395,-500.0,0.00021917,7]
[350986651,1738267846404,-220.16391637,0.00021918,2]
[350986652,1738267846414,-3306.12570504,0.0002195,2]
[350986653,1738267846426,-4943.87429496,0.0002195,2]
[350986654,1738267846436,-151.0,0.0002195,7]
[350986655,1738267846446,-151.0,0.0002195,7]
[350986656,1738267846456,-261.922561,0.0002195,7]
[350986657,1738267846466,-158.4710779,0.00021973,2]
[350986658,1738267846476,-300.21185406,0.00021999,2]
[350986659,1738267846485,-575.94,0.00021999,2]
[350986660,1738267846495,-575.94,0.00021999,2]
[350986661,1738267846504,-575.94,0.00021999,2]
[350986662,1738267846513,-575.94,0.00021999,2]
[350986664,1738267846523,-575.94,0.00021999,2]
[350986665,1738267846532,-575.94,0.00021999,2]
[350986667,1738267846541,-575.94,0.00021999,2]
[350986669,1738267846550,-575.94,0.00021999,2]
[350986671,1738267846560,-576.05084724,0.00021999,2]
[350986673,1738267846569,-156.1,0.00022,2]
[350986675,1738267846577,-47909.31475878,0.00022,2]
[350986677,1738267846589,-323.56061344,0.00022,2]
[350986679,1738267846600,-691.42540731,0.00022,2]
[350986681,1738267846611,-1293.27240206,0.00022,2]
[350990701,1738268054003,411.226689,0.0001497,2]
[350990703,1738268257166,162.677479,0.00013973,2]
[350990706,1738268758219,-241.94138805,0.00015406,2]
[350990710,1738268845120,-1279.32179689,0.00015406,2]
[350990712,1738268867864,4259.76328053,0.000204,15]
[350990718,1738268946190,-205.613344,0.00015164,2]
[350990719,1738268946213,-2895.21325141,0.00015406,2]
[350990720,1738268949097,-140.5018464,0.00015406,2]
[350990721,1738268949117,-845.8866292,0.00015433,2]
[350990722,1738268949140,-4635.5271861,0.00015469,2]
[350990723,1738268949161,-300.0,0.00015499,2]
[350990724,1738268949183,-39903.58960098,0.000155,2]
[350990725,1738268952137,-128675.28731528,0.000155,2]
[350990726,1738268952159,-371.10577164,0.00015506,2]
[350990776,1738269032476,-610.9096329,0.00015469,2]
[350990778,1738269032486,-1692.54665721,0.00016,2]
[350990783,1738269032524,-394.44286205,0.00016,2]
[350990784,1738269032536,-224.14237937,0.00016,2]
[350990785,1738269032547,-858.13603201,0.00016428,2]
[350990786,1738269032556,-176.43,0.00016428,2]
[350990787,1738269032566,-176.43,0.00016428,2]
[350990788,1738269032576,-385.12828622,0.00016437,2]
[350990789,1738269032588,-193.58215731,0.00016438,2]
[350990790,1738269032597,-500.0,0.00016438,2]
[350990791,1738269032607,-500.0,0.00016438,2]
[350990792,1738269032616,-500.0,0.00016438,2]
[350990793,1738269032627,-500.0,0.00016438,2]
[350990794,1738269032638,-348.43923245,0.00016438,2]
[350990795,1738269032647,-500.0,0.00016438,2]
[350990796,1738269032656,-500.0,0.00016438,2]
[350990797,1738269032665,-500.0,0.00016438,2]
[350990798,1738269032674,-500.0,0.00016438,2]
[350990799,1738269032683,-500.0,0.00016438,2]
[350990800,1738269032693,-500.0,0.00016438,2]
[350990801,1738269032702,-500.0,0.00016438,2]
[350990802,1738269032711,-500.0,0.00016438,2]
[350990803,1738269032721,-500.0,0.00016438,2]
[350990804,1738269032730,-500.0,0.00016438,2]
[350990805,1738269032739,-500.0,0.00016438,2]
[350990806,1738269032748,-500.0,0.00016438,2]
[350990807,1738269032758,-500.0,0.00016438,2]
[350990808,1738269032768,-500.0,0.00016438,2]
[350990809,1738269032777,-500.0,0.00016438,2]
[350990810,1738269032786,-500.0,0.00016438,2]
[350990811,1738269032796,-500.0,0.00016438,2]
[350990812,1738269032805,-500.0,0.00016438,2]
[350990813,1738269032816,-515.72773572,0.00016438,2]
[350990814,1738269032825,-376.40530418,0.00016438,2]
[350990815,1738269032836,-500.0,0.00016438,2]
[350990816,1738269032846,-185.18099463,0.00016438,2]
[350990817,1738269032855,-368.94084723,0.00016438,2]
[350990818,1738269032864,-251.49910826,0.00016438,2]
[350990819,1738269032873,-500.0,0.00016438,2]
[350990820,1738269032882,-500.0,0.00016438,2]
[350990821,1738269032891,-500.0,0.00016438,2]
[350990822,1738269032900,-500.0,0.00016438,2]
[350990823,1738269032910,-500.0,0.00016438,2]
[350990824,1738269032920,-500.0,0.00016438,2]
[350990825,1738269032930,-308.78431203,0.00016438,2]
[350990826,1738269032940,-526.90165557,0.00016438,2]
[350990827,1738269032950,-316.87735757,0.00016438,2]
[350990828,1738269032959,-500.0,0.00016438,2]
[350990829,1738269032969,-500.0,0.00016438,2]
[350990830,1738269032979,-500.0,0.00016438,2]
[350990831,1738269032989,-500.0,0.00016438,2]
[350990832,1738269032998,-500.0,0.00016438,2]
[350990833,1738269033007,-500.0,0.00016438,2]
[350990834,1738269033017,-630.57000001,0.00016438,2]
[350990835,1738269033027,-500.0,0.00016438,2]
[350990836,1738269033036,-500.0,0.00016438,2]
[350990837,1738269033046,-167.88106549,0.00016438,2]
[350990838,1738269033056,-223.33374177,0.00016438,2]
[350990839,1738269033066,-500.0,0.00016438,2]
[350990840,1738269033075,-500.0,0.00016438,2]
[350990841,1738269033085,-500.0,0.00016438,2]
[350990842,1738269033096,-500.0,0.00016438,2]
[350990843,1738269033106,-500.0,0.00016438,2]
[350990844,1738269033119,-500.0,0.00016438,2]
[350990845,1738269033129,-500.0,0.00016438,2]
[350990846,1738269033139,-500.0,0.00016438,2]
[350990847,1738269033150,-500.0,0.00016438,2]
[350990848,1738269033160,-402.4798391,0.00016438,2]
[350990849,1738269033170,-500.0,0.00016438,2]
[350990850,1738269033180,-500.0,0.00016438,2]
[350990851,1738269033190,-500.0,0.00016438,2]
[350990852,1738269033199,-500.0,0.00016438,2]
[350990853,1738269033209,-500.0,0.00016438,2]
[350990854,1738269033219,-500.0,0.00016438,2]
[350990855,1738269033229,-500.0,0.00016438,2]
[350990856,1738269033238,-500.0,0.00016438,2]
[350990857,1738269033248,-633.12,0.00016438,2]
[350990858,1738269033257,-500.0,0.00016438,2]
[350990859,1738269033266,-500.0,0.00016438,2]
[350990860,1738269033275,-500.0,0.00016438,2]
[350990861,1738269033285,-500.0,0.00016438,2]
[350990862,1738269033294,-500.0,0.00016438,2]
[350990863,1738269033303,-500.0,0.00016438,2]
[350990864,1738269033313,-176.43,0.00016565,2]
[350990865,1738269033323,-176.43,0.00016565,2]
[350990866,1738269033332,-500.0,0.00016573,2]
[350990867,1738269033343,-500.0,0.00016575,2]
[350990868,1738269033352,-500.0,0.00016575,2]
[350990869,1738269033362,-500.0,0.00016575,2]
[350990870,1738269033372,-500.0,0.00016575,2]
[350990871,1738269033381,-500.0,0.00016575,2]
[350990872,1738269033392,-500.0,0.00016575,2]
[350990873,1738269033402,-500.0,0.00016575,2]
[350990874,1738269033412,-500.0,0.00016575,2]
[350990875,1738269033422,-635.38989173,0.00016575,2]
[350990876,1738269033433,-500.0,0.00016575,2]
[350990877,1738269033443,-500.0,0.00016575,2]
[350990878,1738269033452,-500.0,0.00016575,2]
[350990879,1738269033462,-500.0,0.00016575,2]
[350990880,1738269033471,-500.0,0.00016575,2]
[350990881,1738269033481,-500.0,0.00016575,2]
[350990882,1738269033490,-500.0,0.00016575,2]
[350990883,1738269033499,-500.0,0.00016575,2]
[350990884,1738269033509,-500.0,0.00016575,2]
[350990885,1738269033519,-500.0,0.00016575,2]
[350990886,1738269033528,-500.0,0.00016575,2]
[350990887,1738269033537,-500.0,0.00016575,2]
[350990888,1738269033547,-500.0,0.00016575,2]
[350990889,1738269033557,-500.0,0.00016712,2]
[350990890,1738269033773,-500.0,0.00016712,2]
[350990891,1738269033783,-523.04900035,0.00016712,2]
[350990892,1738269033793,-515.97259155,0.00016712,2]
[350990893,1738269033803,-349.23320245,0.00016712,2]
[350990894,1738269033845,-150.76679755,0.00016712,2]
[350990895,1738269033855,-500.0,0.00016712,2]
[350990896,1738269033866,-500.0,0.00016712,2]
[350990897,1738269033876,-188.9371909,0.00016712,2]
[350990906,1738269038130,-476.08682932,0.00016438,2]
[350990907,1738269038187,-23.91317068,0.00016438,2]
[350990908,1738269038197,-591.39333522,0.00016575,2]
[350990909,1738269038207,-311.0628091,0.00016712,2]
[350990910,1738269038216,-162.46,0.00016712,2]
[350990911,1738269038228,-500.0,0.00016712,2]
[350990912,1738269038239,-500.0,0.00016712,2]
[350990913,1738269038250,-270.25,0.00016712,2]
[350990914,1738269038259,-500.0,0.00016849,2]
[350990915,1738269038269,-500.0,0.00016849,2]
[350990916,1738269038280,-500.0,0.00016849,2]
[350990917,1738269038290,-500.0,0.00016849,2]
[350990918,1738269038301,-500.0,0.00016986,2]
[350990919,1738269038320,-500.0,0.00017123,2]
[350990920,1738269038330,-500.0,0.0001726,2]
[350990921,1738269038340,-500.0,0.00017397,2]
[350990922,1738269038349,-500.0,0.00017534,2]
[350990923,1738269038358,-432.34,0.00017671,2]
[350990924,1738269038368,-200.26122966,0.000179,2]
[350990925,1738269038378,-366.565,0.00018315,2]
[350990926,1738269038387,-156.1,0.000186,2]
[350990927,1738269038397,-172.80474645,0.00019336,2]
[350990928,1738269038407,-153.0,0.00019436,2]
[350990929,1738269038416,-153.0,0.00019436,2]
[350990930,1738269038426,-56.53802729,0.00019436,2]
[350990931,1738269038439,-96.46197271,0.00019436,2]
[350990932,1738269038448,-153.0,0.00019436,2]
[350990933,1738269038459,-153.0,0.00019436,2]
[350990934,1738269038469,-153.0,0.00019436,2]
[350990935,1738269038478,-153.0,0.00019436,2]
[350990936,1738269038488,-24.81462795,0.00019436,2]
[350990964,1738269332159,162.677479,0.00013973,2]
[350990965,1738269514612,461.734703,0.00015101,2]
[350990966,1738269583528,24900.0,0.00015059,2]
[350990967,1738269682548,2023.0366104,0.00015046,2]
[350990968,1738269723269,205.613345,0.00015046,2]
[350990969,1738269896060,3768.03072935,0.00015101,2]
[350990970,1738269937157,-170.271908,0.00015575,2]
[350990971,1738269937181,-170.271908,0.00015601,2]
[350990972,1738269937205,-170.271908,0.00015627,2]
[350990973,1738269937393,-355.07136861,0.00015627,2]
[350990974,1738269995518,7523.0,0.00022335,120]
[350990975,1738270019517,10000.0,0.00020453,90]
[350990976,1738270034089,-304.3221908,0.00015627,2]
[350990977,1738270046112,-31.62309269,0.00015627,2]
[350990978,1738270046134,-170.271908,0.00015653,2]
[350990979,1738270046154,-86.49777312,0.00016011,2]
[350990986,1738270148150,-490.0,0.00015527,2]
[350990989,1738270165099,-490.0,0.00015427,2]
[350990995,1738270213794,157.595465,0.00013973,2]